Cogmind - Beta 14 *** ADVENTURER MODE // 2024.09.26 @ 19:29:00 Player: Knightshade Result: Self-destructed Performance ------------- Evolutions (0) 0 Regions Visited (4) 800 Robots Destroyed (25) 125 Value Destroyed (513) 513 Prototype IDs (37) 740 Alien Tech Used (0) 0 Bonus (300) 300 TOTAL SCORE: 2478 Bonus ------- Aligned with FarCom 300 Cogmind --------- Core Integrity 111/250 Matter 283/300 Energy 250/250 System Corruption 1% Temperature Cool (0) Movement Rolling (115) Ox1 Location -9/Mines Parts ------- > --- POWER (1) -------- Ion Engine > --- PROPULSION (2) --- Compact Wheel Compact Wheel > --- UTILITY (2) ------ Large Storage Unit Thief Drone Bay (3/3) > --- WEAPON (2) ------- Light Cannon Light Cannon > --- INVENTORY (15) --- Light Nuclear Core Compact Wheel Experimental Sensor Array Improved Terrain Scanner Power Shielding Medium Armor Plating Particle Gun Guided Plasma Cannon Light Cannon Improved Light Cannon Datajack Peak State ------------ > --- POWER ------------ Ion Engine > --- PROPULSION ------- Compact Wheel Compact Wheel > --- UTILITY ---------- Large Storage Unit Thief Drone Bay > --- WEAPON ----------- Light Cannon Light Cannon > --- INVENTORY -------- Light Nuclear Core Compact Wheel Experimental Sensor Array Improved Terrain Scanner Power Shielding Medium Armor Plating Particle Gun Guided Plasma Cannon Light Cannon Improved Light Cannon Datajack [Rating: 16] Favorites ----------- Power Ion Engine Engine Ion Engine Propulsion Compact Wheel Treads Light Treads Wheel Compact Wheel Utility Small Storage Unit Device Seismic Detector Storage Small Storage Unit Weapon Light Cannon Energy Gun Medium Laser Ballistic Cannon Light Cannon Special Melee Weapon Datajack Build | -11 -10 -10 -10 -9 ------- Run | Yrd Mat Min Exi Min Slots Evolved . | . . . . . Power . | . . . . . Propulsion . | . . . . . Utility . | . . . . . Weapon . | . . . . . Parts Attached 23 | 7 10 1 3 2 Power 3 | 1 2 . . . Engine 3 | 1 2 . . . Core . | . . . . . Reactor . | . . . . . Propulsion 7 | 2 3 1 1 . Treads 4 | 2 2 . . . Leg . | . . . . . Wheel 3 | . 1 1 1 . Hover . | . . . . . Flight . | . . . . . Utility 4 | 2 . . 1 1 Device 2 | 1 . . . 1 Storage 2 | 1 . . 1 . Processor . | . . . . . Hackware . | . . . . . Protection . | . . . . . Artifact . | . . . . . Weapon 9 | 2 5 . 1 1 Energy Gun 4 | 2 2 . . . Energy Cannon . | . . . . . Ballistic Gun . | . . . . . Ballistic Cannon 4 | . 3 . . 1 Launcher . | . . . . . Special Weapon . | . . . . . Impact Weapon . | . . . . . Slashing Weapon . | . . . . . Piercing Weapon . | . . . . . Special Melee Weapon 1 | . . . 1 . Unidentified Prototypes 1 | . . . . 1 Parts Lost 2 | . . 1 . 1 Power . | . . . . . Propulsion 1 | . . 1 . . Utility 1 | . . . . 1 Weapon . | . . . . . Highest Loss Streak 1 | . . 1 . 1 To Critical Strikes . | . . . . . Average Slot Usage (%) 95 | . 98 93 100 91 Engine 13 | . 13 14 14 14 Treads 6 | . 16 . . . Wheel 19 | . 10 20 28 28 Device 12 | . 14 14 14 6 Storage 14 | . 14 14 14 14 Energy Gun 5 | . 16 . . . Ballistic Cannon 20 | . 11 28 16 28 Special Melee Weapon 1 | . . . 11 . Peak Build Rating 16 | 7 8 9 9 16 Average Rating 8 | 5 7 8 8 11 On Entrance 6 | . 7 8 9 9 Naked Turns . | . . . . . Heaviest Build 35 | 15 17 17 30 35 Greatest Support 40 | 40 40 32 32 32 Greatest Overweight (x) 1 | . 1 1 . 1 Average Overweight (x) . | . . . . . Largest Inventory Capacity 15 | 8 8 8 15 15 Average Capacity 9 | 7 8 8 8 15 Most Carried 12 | 3 8 8 8 12 Average Carried 7 | 1 5 7 7 10 Final Capacity 15 | 8 8 8 15 15 Final Carried 11 | 2 8 8 8 11 Class Distribution -------------------- 100% | Mutant Dominant Class ---------------- Mutant | -10/Materials Mutant | -10/Mines Mutant | -10/Exiles Mutant | -9/Mines Resources | -11 -10 -10 -10 -9 ----------- Run | Yrd Mat Min Exi Min Matter Collected 658 | 215 222 146 . 75 Remotely . | . . . . . Salvage Created 830 | 127 457 170 . 76 Parts 42 | 5 18 15 . 4 Haulers Intercepted 1 | . 1 . . . Recyclers Shooed 1 | . 1 . . . Parts Field Recycled . | . . . . . Retrieved Matter . | . . . . . Parts Self-Destructed . | . . . . . Prevented . | . . . . . Kills | -11 -10 -10 -10 -9 ------- Run | Yrd Mat Min Exi Min Combat Hostiles Destroyed 17 | . 9 6 . 2 Guns 4 | . 4 . . . Cannons 13 | . 5 6 . 2 Classes Destroyed 8 | 2 4 1 . 1 Tunneler 2 | 2 . . . . Hauler 1 | . 1 . . . Recycler 3 | 1 2 . . . Watcher 2 | . 2 . . . Swarmer 7 | . 6 1 . . Grunt 7 | . 3 3 . 1 Brawler 1 | . . . . 1 Sentry 2 | . . 2 . . Best Kill Streak 5 | 1 5 3 . 2 Combat Bots Only 5 | . 5 3 . 2 Max Kills in Single Turn 2 | 1 2 1 . 1 Gunslinging 1 | . 1 . . . Exploded . | . . . . . Melee . | . . . . . Uniques/NPCs Destroyed . | . . . . . Combat | -11 -10 -10 -10 -9 -------- Run | Yrd Mat Min Exi Min Hostile Shots Fired 86 | . 51 26 . 9 Missed 17 | . 10 6 . 1 Damage Taken 574 | . 267 208 . 99 Core 139 | . 22 50 . 67 Absorbed by Shields . | . . . . . Ignored by Resistances 178 | . 88 61 . 29 Core Remaining (%) 100 | 100 . . . . Volleys Fired 64 | 9 37 13 . 5 Largest 2 | 2 2 2 . 2 Hottest 100 | 100 100 70 . 70 Shots Fired 128 | 18 74 26 . 10 Gun 66 | 18 48 . . . Cannon 62 | . 26 26 . 10 Launcher . | . . . . . Special . | . . . . . Kinetic 62 | . 26 26 . 10 Thermal 66 | 18 48 . . . Explosive . | . . . . . Electromagnetic . | . . . . . Robot Hit Streak 19 | 14 19 4 . 7 Robot Miss Streak 5 | . 5 2 . . Penetration Max . | . . . . . Secondary Targets 1 | . 1 . . . Max Gunslinging Chain 1 | . 1 . . . Shots Hit Robots 86 | 14 49 14 3 6 Core Hits 33 | 4 18 8 . 3 Critical Kills . | . . . . . Critical Parts Destroyed . | . . . . . Critical Strikes 6 | 2 4 . . . Burn 6 | 2 4 . . . Melee Attacks 3 | . . . 3 . Impact . | . . . . . Slashing . | . . . . . Piercing . | . . . . . Sneak Attacks 3 | . . . 3 . Combat Hostiles . | . . . . . Follow-up Attacks . | . . . . . Damage Inflicted 1260 | 177 709 266 . 108 Guns 621 | 177 444 . . . Cannons 639 | . 265 266 . 108 Explosions . | . . . . . Melee . | . . . . . Ramming . | . . . . . Kinetic 639 | . 265 266 . 108 Thermal 621 | 177 444 . . . Explosive . | . . . . . Electromagnetic . | . . . . . Impact . | . . . . . Slashing . | . . . . . Piercing . | . . . . . Highest Corruption 1 | . . . . 1 Average Corruption 1 | . . . . 1 Corruption Purged . | . . . . . Corruption Blocked . | . . . . . Effects 1 | . . . . 1 Matter Fused 1 | . . . . 1 Overload Shots . | . . . . . Overflow Damage 13 | . 13 . . . Projectiles 13 | . 13 . . . Explosions . | . . . . . Melee . | . . . . . Knockbacks 1 | . . 1 . . Impact . | . . . . . Kinetic 1 | . . 1 . . Secondary . | . . . . . Self-Inflicted Damage . | . . . . . Shots . | . . . . . Rammed . | . . . . . Targets Rammed . | . . . . . Kicked . | . . . . . Crushed . | . . . . . Highest Temperature 273 | 117 273 124 . 60 Average Temperature 66 | 50 80 44 . 31 Received Heat Transfer 180 | . 39 111 . 30 Effects 1 | . 1 . . . Energy Bleed 1 | . 1 . . . Siege Activations . | . . . . . Robots Corrupted . | . . . . . Combat Hostiles . | . . . . . Parts Fried . | . . . . . Impact Corruptions . | . . . . . Robots Melted . | . . . . . Combat Hostiles . | . . . . . Parts Melted 5 | 3 2 . . . Heat Transferred 2257 | 666 1591 . . . Parts Sabotaged . | . . . . . Parts Stolen . | . . . . . Parts Stripped . | . . . . . Power Chain Reactions . | . . . . . Alert | -11 -10 -10 -10 -9 ------- Run | Yrd Mat Min Exi Min Peak Influence 171 | 15 171 161 . 50 Initial 8 | . 8 5 . . Average 48 | 6 67 36 . 48 Maximum Alert Level . | . . . . . Low Security (%) 100 | 100 100 100 . 100 Level 1 . | . . . . . Level 2 . | . . . . . Level 3 . | . . . . . Level 4 . | . . . . . Level 5 . | . . . . . High Security . | . . . . . Max Security . | . . . . . Squads Dispatched 1 | . 1 . . . Investigation 1 | . 1 . . . Extermination . | . . . . . Reinforcement . | . . . . . Assault . | . . . . . Garrison . | . . . . . Intercept . | . . . . . Searches Triggered . | . . . . . Construction Impeded . | . . . . . Haulers Reinforced . | . . . . . Active Scanning Responses . | . . . . . Cargo Convoy Interrupts . | . . . . . Stealth | -11 -10 -10 -10 -9 --------- Run | Yrd Mat Min Exi Min Distress Signals 1 | . 1 . . . Communications Jammed . | . . . . . Distress Signals . | . . . . . Times Spotted 24 | . 14 7 . 3 Peak Tracking Total 4 | . 4 3 . 2 Tactical Retreats 1 | . . 1 . . Traps | -11 -10 -10 -10 -9 ------- Run | Yrd Mat Min Exi Min Traps Triggered 5 | . 5 . . . Indirectly . | . . . . . Trap Hack Attempts . | . . . . . Triggered . | . . . . . Disarmed . | . . . . . Reprogrammed . | . . . . . Reused . | . . . . . Traps Extracted . | . . . . . Installed . | . . . . . Triggered . | . . . . . Machines | -11 -10 -10 -10 -9 ---------- Run | Yrd Mat Min Exi Min Machines Disabled . | . . . . . Max in Single Turn . | . . . . . Machines Repaired . | . . . . . Machines Dismantled . | . . . . . Machines Sabotaged . | . . . . . Overloaded Fab Kills . | . . . . . Hacking | -11 -10 -10 -10 -9 --------- Run | Yrd Mat Min Exi Min Machines Accessed 7 | . 5 . 1 1 Terminals 5 | . 5 . . . Fabricators . | . . . . . Repair Stations . | . . . . . Recycling Units . | . . . . . Scanalyzers . | . . . . . Garrison Access . | . . . . . Total Hacks 19 | . 17 . 1 1 Successful 13 | . 11 . 1 1 Failed 6 | . 6 . . . Catastrophic . | . . . . . Database Lockouts . | . . . . . Manual 14 | . 13 . 1 . Terminals 17 | . 17 . . . Fabricators . | . . . . . Repair Stations . | . . . . . Recycling Units . | . . . . . Scanalyzers . | . . . . . Garrison Access . | . . . . . Terminal Hacks 5 | . 3 . 1 1 Prototype ID Bank 1 | . 1 . . . Open Door 1 | . . . . 1 Terminal Index 1 | . 1 . . . Zone Layout 1 | . 1 . . . Derelict Proto ID Bank 1 | . . . 1 . Fabricator Hacks . | . . . . . Repair Station Hacks . | . . . . . Recycling Unit Hacks . | . . . . . Scanalyzer . | . . . . . Garrison Access Hacks . | . . . . . Unauthorized Hacks 8 | . 8 . . . Terminals 8 | . 8 . . . Track 3 | . 3 . . . Botnet 5 | . 5 . . . Fabricators . | . . . . . Repair Stations . | . . . . . Recycling Units . | . . . . . Scanalyzers . | . . . . . Garrison Access . | . . . . . Data Cores Recovered . | . . . . . Used . | . . . . . Hacking Detections 5 | . 5 . . . Full Trace Events . | . . . . . Feedback Events . | . . . . . Feedback Blocked . | . . . . . Robot Schematics Acquired . | . . . . . Robots Built . | . . . . . Authchips . | . . . . . Time . | . . . . . Total Robot Build Rating . | . . . . . Part Schematics Acquired . | . . . . . Parts Built . | . . . . . Authchips . | . . . . . Time . | . . . . . Total Part Build Rating . | . . . . . Parts Repaired . | . . . . . Time . | . . . . . Parts Recycled . | . . . . . Recycled Matter . | . . . . . Retrieved Matter . | . . . . . Retrieved Components . | . . . . . Parts Scanalyzed . | . . . . . Part Schematics Acquired . | . . . . . Parts Damaged . | . . . . . Bothacking | -11 -10 -10 -10 -9 ------------ Run | Yrd Mat Min Exi Min Used RIF Installer . | . . . . . Robots Hacked 3 | . . . 3 . Non-combat 2 | . . . 2 . Combat 1 | . . . 1 . Robot Hacks Applied 3 | . . . 3 . parse_system 3 | . . . 3 . Relay Couplers Released . | . . . . . Fabnet Peak Effective % . | . . . . . Robots Rewired . | . . . . . Allies Hacked . | . . . . . Hacks Repelled . | . . . . . Allies | -11 -10 -10 -10 -9 -------- Run | Yrd Mat Min Exi Min Total Allies . | . . . . . Largest Group . | . . . . . Highest-Rated Group . | . . . . . Highest-Rated Ally . | . . . . . Total Orders 1 | . . . . 1 RETURN 1 | . . . . 1 Ally Attacks . | . . . . . Total Damage . | . . . . . Kills . | . . . . . Allies Corrupted . | . . . . . Allies Melted . | . . . . . Intel | -11 -10 -10 -10 -9 ------- Run | Yrd Mat Min Exi Min Robot Analysis Total . | . . . . . Derelict Logs Recovered 2 | . . 1 . 1 Drone Launches 1 | . . . . 1 Drone Recoveries 1 | . . . . 1 Exploration | -11 -10 -10 -10 -9 ------------- Run | Yrd Mat Min Exi Min Turns Passed 2800 | 156 941 977 326 400 Spaces Moved 1850 | 76 677 498 311 288 Core 7 | 7 . . . . Treads 179 | 69 110 . . . Legs . | . . . . . Wheels 1664 | . 567 498 311 288 Hover . | . . . . . Flight . | . . . . . Fastest Speed 50 | 50 100 100 100 100 Average Speed 110 | 149 116 105 100 106 Slowest Speed 160 | 160 160 115 100 115 Overloaded Moves . | . . . . . Propulsion Burnouts . | . . . . . Robots Hopped . | . . . . . Cave-ins Triggered . | . . . . . Exploration Rate (%) 62 | 6 97 93 61 56 Regions Visited 4 Branch Regions 3 Pre-discovered Areas . | . . . . . Known Exits Taken . | . . . . . Unknown Exits Taken 4 | 1 1 1 1 . Scrap Searched 3 | . . 1 . 2 Spaces Dug . | . . . . . Terrain Destroyed . | . . . . . Melee . | . . . . . Projectile . | . . . . . AOE . | . . . . . Terrain Rammed . | . . . . . Walls Destroyed . | . . . . . Machines Disabled . | . . . . . Actions | -11 -10 -10 -10 -9 --------- Run | Yrd Mat Min Exi Min Total 2477 | 100 759 923 324 371 Wait 495 | . 12 411 . 72 Move 1846 | 75 676 497 310 288 Hop . | . . . . . Pick Up 37 | 9 19 1 4 4 Fast Attach . | . . . . . Attach 19 | 7 10 1 . 1 Detach . | . . . . . Swap 4 | . . . 3 1 Drop 9 | . 5 . 4 . Fire 64 | 9 37 13 . 5 Melee 3 | . . . 3 . Ram . | . . . . . Kick . | . . . . . Crush . | . . . . . Escape Stasis . | . . . . . Rewire . | . . . . . Trap . | . . . . . Miscellaneous . | . . . . . Route ------- -11/Scrapyard -10/Materials (discovered 5 exits: [*Mat x3] / [*Min x2]) -10/Mines (discovered 2 exits: [*Mat] / *Exi) -10/Exiles -9/Mines (discovered 1 exit: [*Mat]) History --------- Turn | Location | Event 17 | -11/Scrapyard | Discovered new exit (range 16) 157 | -11/Scrapyard | Entered Materials 310 | -10/Materials | Build established: Mutant 436 | -10/Materials | Discovered new exit (range 9) 578 | -10/Materials | Discovered new exit (range 16) 678 | -10/Materials | Discovered new exit (range 15) 870 | -10/Materials | Discovered new exit (range 10) 950 | -10/Materials | Discovered new exit (range 16) 1098 | -10/Materials | Entered Mines 1192 | -10/Mines | Excavation squad dispatched 1192 | -10/Mines | A large section of the Mines collapsed 1442 | -10/Mines | Excavation squad dispatched 1601 | -10/Mines | Found a damaged Exp. Sensor Array with a note attached 1604 | -10/Mines | Found Prototype Device 1684 | -10/Mines | Learned Materials trap positions 1692 | -10/Mines | Excavation squad dispatched 1942 | -10/Mines | Excavation squad dispatched 2036 | -10/Mines | Deemed a non-threat by the Exiles lab entrance 2036 | -10/Mines | Discovered new exit (range 5) 2050 | -10/Mines | Discovered new exit (range 4) 2075 | -10/Mines | Entered Exiles 2099 | -10/Exiles | Met 8R-AWN 2167 | -10/Exiles | Met EX-HEX 2196 | -10/Exiles | Met EX-BIN 2209 | -10/Exiles | Aligned with FarCom system 2210 | -10/Exiles | Given EX-Vault access code 2233 | -10/Exiles | Opened EX-Vault 2241 | -10/Exiles | Found Gui. Plasma Cannon 2267 | -10/Exiles | Warned to stay clear of 0b10 Research branches 2293 | -10/Exiles | Met EX-DEC 2390 | -10/Exiles | Discovered new exit (range 14) 2401 | -10/Exiles | Left Exiles lab with Gui. Plasma Cannon 2401 | -10/Exiles | Entered Mines 2410 | -9/Mines | Core integrity fell below 50% 2445 | -9/Mines | Discovered new exit (range 11) 2481 | -9/Mines | Learned Materials emergency access door positions 2536 | -9/Mines | Assembled infested the area 2615 | -9/Mines | Found the Drone Emporium 2619 | -9/Mines | Found Prototype Device 2620 | -9/Mines | Identified Thief Drone Bay 2801 | -9/Mines | Self-destructed Last Messages --------------- 02559_ K-01 Serf collects debris. 02608_ Searching scrap... 02608_ Found Ion Engine. 02608_ Found Particle Cannon. 02608_ Found 62 Matter. 02614_ Connecting with SHOP.Sys... 02614_ Current location identified: Mines >>Open Door Sealed Doors opened. 02615_ IA-BZX(g): "Well that was anticlimactic. Heard you outside and thought you were from the Merchants Guild. I haven't even officially opened my Drone Emporium yet but am totally ready to tell them where they can shove that C&D." 02617_ IA-BZX(g): "I'm a fan of the free market. Free drones for all! No strings attached!" 02619_ Acquired Prototype Device. 02620_ Identified Thief Drone Bay. 02622_ Thief Drone released from Thief Drone Bay. 02637_ Thief Drone retrieved by Thief Drone Bay. 02650_ System corrupted: Matter fused (-7). Map ----- +----------------------------------------------------+ | | | | | | | | | | | ???????????????????????????????? | | ???????????????????????????????? | | ???????????????????????????????? | | ?????????????????????????? #???? | | ?????????????????????????? ???? | | ?????????????????????????? ???? | | ?????????????????????????? ???? | | ?????????????????????????? ???? | | ?????????????????????????? ???? | | ?????????????????????????? ???? | | ?????????????????????????? #??? | | ?????????????????????????? ?## | | ??????????####???????????? ?? | | ????????### ####????????? ??? | | ?????#### ##????????# #??? | | ??#### ######???# #??? | | ?## ### ## ##### #??? | | ?# ##?##d ## #### | | ?# """ ##???## d | | ?# """ ##????## | | ?# """@ #?????# #### ###### | | ?# #?????# #??## ##????# | | ?## #?##### #???####?????? | | ??## #### ## ]#????????????# | | ???######## # %#???????????## | | ?????##""## #* #??????????## | | ?????#" # #?????????## | | ?????#" #????????## | | ?????#" #????????# | | ?????#" #X ####???????## | | ?????##""## #?????????## | | ??????####### #?????????# | | ??????????## ##????????# | | ?????????## #?????????# # | | ?????????# ######????# ? | | ?????????# #????# ?? | | ?????????# ###### #????## ##?? | | ?????????####????# #?????###???? | | ?????????????????# #???????????? | | ?????????????????# ############# | | ?????????????????# | | ?????????????????###### ######## | | ??????????????????????# #??????? | | ??????????????????????# #??????? | | ????????????????????? #??????? | +----------------------------------------------------+ Best States ------------- Heat Dissipation 25 Energy Generation 10 Energy Capacity 250 Matter Stores 300 Matter Capacity 300 Sight Range 16 Terrain Scan Density 10 Resistance: KI 20 Resistance: TH 20 Resistance: EX 20 Resistance: EM 20 Resistance: I 20 Resistance: S 20 Resistance: P 20 Evasion (%) 40 Recoil Reduction 2 Offensive Hacking 10 Item Schematics ----------------- None Robot Schematics ------------------ None Fabricated ------------ Nothing Alien Tech Used ----------------- None Achievements -------------- None Challenges ------------ None Game ------ Seed DataEfficiencyMace Manual? 0 Play Time 00:20:11 Cumulative 82.4 hours Start 2024.09.26 @ 18:56:02 End 2024.09.26 @ 19:29:00 Sessions 1 Manual Loads 0 Difficulty Adventurer Special Mode None Game No. 57 Rogue 0 Adventurer 57 Explorer 0 Win Type - Total 0 Types 0/0/0/0/0/0/0/0/0 Lore% 21 Gallery% 41 Achievement% 35 Wizard Run 0 Options --------- Layout 0 ASCII 0 Keyboard 0 Movement Mouse Keybinds 0 Fullscreen 1 Font 18/SmallcapsGlow Map View 76x50 Zoom Use 0% Tactical HUD 1 Map Filters NONE Filters NONE Steam 1 RUN: 7ce672d4-a977-4dcc-b38b-c0c4f5ecedcc